Cogmind - Beta 17.1 @@@ ROGUE MODE // 2026.08.30 @ 18:30:16 Player: CONM Result: Destroyed by Y-45 Defender with Heavy Assault Rifle Performance ------------- Evolutions (2) 1000 Regions Visited (6) 1200 Robots Destroyed (48) 240 Value Destroyed (1977) 1977 Prototype IDs (0) 0 Alien Tech Used (0) 0 Bonus (362) 362 TOTAL SCORE: 4779 Bonus ------- High Alert Combat Kills 113 Follower Combat Kills 49 Entered Garrisons 200 Cogmind --------- Core Integrity 0/550 Matter 120/300 Energy 55/100 System Corruption 0% Temperature Cool (10) Movement Walking (120) Location -8/Garrison Parts ------- > --- POWER (1) -------- (None) > --- PROPULSION (3) --- Aluminum Leg > --- UTILITY (5) ------ Trap Scanner Signal Interpreter > --- WEAPON (2) ------- (None) > --- INVENTORY (5) ---- Light Nuclear Core Improved Heat Sink Relay Coupler [Swarmer] (31) Relay Coupler [Grunt] (26) Peak State ------------ > --- POWER ------------ Nuclear Core > --- PROPULSION ------- Light Treads Light Treads Advanced Treads > --- UTILITY ---------- Improved Heat Sink Medium Storage Unit Improved Sensor Array Signal Interpreter Light Armor Plating > --- WEAPON ----------- Minigun Assault Cannon > --- INVENTORY -------- Light Nuclear Core Wheel Humpback Improved Terrain Scanner Shield Generator Assault Rifle Autogun Autogun Shotgun [Rating: 24] Favorites ----------- Power Nuclear Core Engine Ion Engine Power Core Nuclear Core Propulsion Light Treads Treads Light Treads Leg Aluminum Leg Wheel Wheel Utility Signal Interpreter Device Trap Scanner Storage Humpback Processor Signal Interpreter Protection Light Armor Plating Weapon Autogun Energy Gun Medium Laser Ballistic Gun Autogun Ballistic Cannon Assault Cannon Build | -11 -10 -10 -10 -9 -8 -8 ------- Run | Yrd Mat Min Exi Min Mat Gar Slots Evolved 4 | . . . . . 4 . Power . | . . . . . . . Propulsion 1 | . . . . . 1 . Utility 3 | . . . . . 3 . Weapon . | . . . . . . . Parts Attached 34 | 6 10 5 . . 5 8 Power 5 | 1 2 2 . . . . Engine 3 | 1 2 . . . . . Core 2 | . . 2 . . . . Reactor . | . . . . . . . Propulsion 6 | 2 1 1 . . . 2 Treads 4 | 2 1 1 . . . . Leg 1 | . . . . . . 1 Wheel 1 | . . . . . . 1 Hover . | . . . . . . . Flight . | . . . . . . . Utility 11 | 1 3 1 . . 4 2 Device 5 | 1 . . . . 3 1 Storage 3 | . 2 . . . . 1 Processor 1 | . . . . . 1 . Hackware . | . . . . . . . Protection 2 | . 1 1 . . . . Artifact . | . . . . . . . Weapon 12 | 2 4 1 . . 1 4 Energy Gun 3 | 2 . . . . . 1 Energy Cannon . | . . . . . . . Ballistic Gun 7 | . 3 1 . . . 3 Ballistic Cannon 2 | . 1 . . . 1 . Launcher . | . . . . . . . Special Weapon . | . . . . . . . Impact Weapon . | . . . . . . . Slashing Weapon . | . . . . . . . Piercing Weapon . | . . . . . . . Special Melee Weapon . | . . . . . . . Unidentified Prototypes . | . . . . . . . Parts Lost 15 | . 1 1 . . 1 12 Power 2 | . 1 . . . . 1 Propulsion 4 | . . . . . 1 3 Utility 4 | . . 1 . . . 3 Weapon 5 | . . . . . . 5 Highest Loss Streak 5 | . 1 1 . . 1 5 To Critical Strikes . | . . . . . . . Average Backups 15 | 3 8 9 9 9 8 19 Power 1 | . . . 1 1 1 1 Propulsion 2 | 1 2 2 2 2 1 2 Utility 9 | . 3 5 5 5 2 12 Weapon 2 | . 1 1 1 1 3 3 Tool/Special . | . . . . . . . Unused Backups 18 | . . 1 . . 1 16 Power 1 | . . . . . . 1 Propulsion 3 | . . 1 . . . 2 Utility 14 | . . . . . 1 13 Weapon . | . . . . . . . Tool/Special . | . . . . . . . Average Slot Usage (%) 71 | . 95 100 100 100 99 56 Engine 1 | . 12 1 . . . . Core 4 | . . 12 14 14 9 2 Treads 12 | . 28 28 28 28 27 3 Wheel 1 | . . . . . . 2 Device 7 | . 5 . . . 17 8 Storage 11 | . 11 14 14 14 9 11 Processor 6 | . . . . . 8 9 Protection 4 | . 8 14 14 14 9 . Energy Gun 1 | . 9 . . . . . Ballistic Gun 14 | . 15 28 28 28 11 11 Ballistic Cannon 5 | . 2 . . . 6 6 Peak Build Rating 24 | 8 9 15 15 15 24 23 Average Rating 16 | 6 8 13 15 15 22 17 On Entrance 11 | . 8 8 15 15 15 22 Avg Prop Armor Cover (%) 8 | . . . . . . 8 Naked Turns . | . . . . . . . Heaviest Build 227 | 9 21 25 25 25 31 227 Greatest Support 62 | 40 40 42 42 42 62 42 Greatest Overweight (x) 69 | . . . . . . 69 Average Overweight (x) 6 | . . . . . . 24 Largest Inventory Capacity 35 | 5 10 10 10 10 10 35 Average Capacity 24 | 5 8 10 10 10 10 33 Most Carried 25 | 5 10 10 10 10 10 25 Average Carried 15 | 3 8 9 9 10 9 19 Final Capacity 10 | 5 10 10 10 10 10 5 Final Carried 10 | 5 10 10 10 10 10 4 Class Distribution -------------------- 59% | Hauler-Mutant 40% | Mutant Dominant Class ---------------- Mutant | -10/Materials Mutant | -10/Mines Mutant | -10/Exiles Mutant | -9/Mines Mutant | -8/Materials Hauler-Mutant | -8/Garrison Resources | -11 -10 -10 -10 -9 -8 -8 ----------- Run | Yrd Mat Min Exi Min Mat Gar Matter Collected 1442 | 260 160 231 . 30 295 466 Remotely . | . . . . . . . Salvage Created 1530 | 61 409 237 . 30 290 503 Parts 95 | 9 31 9 . 5 15 26 Haulers Intercepted 3 | . 2 . . . 1 . Recyclers Shooed . | . . . . . . . Parts Field Recycled . | . . . . . . . Retrieved Matter . | . . . . . . . Parts Self-Destructed . | . . . . . . . Prevented . | . . . . . . . Parts Restored . | . . . . . . . Kills | -11 -10 -10 -10 -9 -8 -8 ------- Run | Yrd Mat Min Exi Min Mat Gar Combat Hostiles Destroyed 39 | . 12 6 . 2 6 13 Guns 28 | . 5 6 . 2 3 12 Cannons 11 | . 7 . . . 3 1 Classes Destroyed 8 | 1 4 1 . . 1 1 Worker 2 | . 1 . . . 1 . Builder 1 | . . 1 . . . . Tunneler 3 | 3 . . . . . . Hauler 3 | . 2 . . . 1 . Swarmer 11 | . 6 . . 2 . 3 Grunt 25 | . 6 6 . . 5 8 Sentry 2 | . . . . . 1 1 Specialist 1 | . . . . . . 1 Best Kill Streak 9 | 1 9 2 . 2 5 3 Combat Bots Only 6 | . 6 2 . 2 4 3 Max Kills in Single Turn 1 | 1 1 1 . 1 1 1 Gunslinging . | . . . . . . . Exploded . | . . . . . . . Melee . | . . . . . . . Uniques/NPCs Destroyed . | . . . . . . . Combat | -11 -10 -10 -10 -9 -8 -8 -------- Run | Yrd Mat Min Exi Min Mat Gar Hostile Shots Fired 307 | . 63 45 . 7 25 167 Missed 64 | . 20 8 . 1 7 28 Hits 243 | . 43 37 . 6 18 139 Projectile 243 | . 43 37 . 6 18 139 Critical Strikes 7 | . 1 . . . 1 5 Damage Taken 3067 | . 438 542 . 43 217 1827 Core 683 | . 75 56 . . 25 527 Absorbed by Shields 179 | . . . . . 55 124 Core Remaining (%) 73 | 100 . . . 47 . . Volleys Fired 166 | 6 28 24 . 5 29 74 Largest 2 | 2 2 2 . 2 2 2 Hottest 90 | 90 80 45 . 45 62 62 Shots Fired 320 | 12 56 48 . 10 58 136 Gun 241 | 12 33 48 . 10 29 109 Cannon 79 | . 23 . . . 29 27 Launcher . | . . . . . . . Special . | . . . . . . . Kinetic 279 | . 34 48 . 10 58 129 Thermal 41 | 12 22 . . . . 7 Explosive . | . . . . . . . Electromagnetic . | . . . . . . . Robot Hit Streak 27 | 4 10 12 . 10 10 27 Robot Miss Streak 7 | 2 2 1 . 2 2 7 Penetration Max . | . . . . . . . Secondary Targets 3 | . . 1 . . . 2 Max Gunslinging Chain 1 | . . 1 . . . 1 Shots Hit Robots 209 | 8 40 38 . 6 40 77 Core Hits 85 | 3 23 13 . 2 14 30 Critical Kills . | . . . . . . . Critical Parts Destroyed . | . . . . . . . Critical Strikes 1 | . 1 . . . . . Burn 1 | . 1 . . . . . Melee Attacks . | . . . . . . . Impact . | . . . . . . . Slashing . | . . . . . . . Piercing . | . . . . . . . Sneak Attacks . | . . . . . . . Combat Hostiles . | . . . . . . . Follow-up Attacks . | . . . . . . . Damage Inflicted 3315 | 94 571 496 . 87 810 1257 Guns 2343 | 94 268 484 . 87 343 1067 Cannons 958 | . 303 . . . 467 188 Explosions . | . . . . . . . Melee . | . . . . . . . Ramming 14 | . . 12 . . . 2 Kinetic 2919 | . 370 484 . 87 810 1168 Thermal 382 | 94 201 . . . . 87 Explosive . | . . . . . . . Electromagnetic . | . . . . . . . Impact . | . . . . . . . Slashing . | . . . . . . . Piercing . | . . . . . . . Highest Corruption . | . . . . . . . Average Corruption . | . . . . . . . Corruption Purged . | . . . . . . . Corruption Blocked . | . . . . . . . Overload Shots . | . . . . . . . Overflow Damage 38 | . . . . . 32 6 Projectiles 38 | . . . . . 32 6 Explosions . | . . . . . . . Melee . | . . . . . . . Knockbacks 20 | . 4 1 . . 11 4 Impact 1 | . . 1 . . . . Kinetic 16 | . 3 . . . 9 4 Secondary 3 | . 1 . . . 2 . Self-Inflicted Damage . | . . . . . . . Shots . | . . . . . . . Rammed 2 | . . 2 . . . . Targets Rammed 6 | . . 3 . . . 3 Kicked 3 | . . . . . . 3 Crushed 1 | . . 1 . . . . Highest Temperature 172 | 120 172 92 . 28 96 60 Average Temperature 39 | 47 60 37 . 17 35 18 Received Heat Transfer 1282 | . 180 288 . . 141 673 Siege Activations . | . . . . . . . Martial Activations . | . . . . . . . Shielding Activations . | . . . . . . . Robots Disrupted . | . . . . . . . Combat Hostiles . | . . . . . . . Robots Corrupted . | . . . . . . . Combat Hostiles . | . . . . . . . Parts Fried . | . . . . . . . Impact Corruptions . | . . . . . . . Robots Melted . | . . . . . . . Combat Hostiles . | . . . . . . . Parts Melted 1 | . 1 . . . . . Heat Transferred 1148 | 260 666 . . . . 222 Parts Sabotaged . | . . . . . . . Parts Stolen . | . . . . . . . Parts Stripped . | . . . . . . . Power Chain Reactions . | . . . . . . . Alert | -11 -10 -10 -10 -9 -8 -8 ------- Run | Yrd Mat Min Exi Min Mat Gar Maximum Alert Level 5 | . 1 . . . . 5 Low Security (%) 48 | 100 91 100 . 100 100 22 Level 1 6 | . 8 . . . . 7 Level 2 8 | . . . . . . 13 Level 3 8 | . . . . . . 12 Level 4 10 | . . . . . . 15 Level 5 18 | . . . . . . 28 High Security . | . . . . . . . Max Security . | . . . . . . . Peak Influence 2531 | 5 224 61 . 84 91 2531 Initial 47 | . . 21 . . 32 47 Average 675 | . 94 17 . 5 17 1020 Influence Increases 3444 | 15 346 167 . 114 198 2604 Destroy 0b10 Robot/C 840 | . 240 120 . 80 140 260 Destroy 0b10 Robot/NC 45 | 15 15 5 . . 10 . Destroy Leader 126 | . 44 30 . 10 32 10 Allied During Kill 25 | . . 12 . 9 4 . Successful Hack 19 | . . . . . 5 14 Disable Machine 15 | . . . . 15 . . Anti-Garrison Action 2250 | . . . . . . 2250 Destroy Structure 79 | . 2 . . . 7 70 Lose Combat Pursuer 45 | . 45 . . . . . Influence Decreases 913 | 15 290 199 24 30 209 146 Entered New Map 137 | . . 35 24 . 52 26 Time Decay 612 | 15 280 164 . 10 143 . Lost Part 140 | . 10 . . . 10 120 Lost Ally 24 | . . . . 20 4 . Squads Dispatched 4 | . 2 . . . 2 . Investigation 1 | . 1 . . . . . Extermination . | . . . . . . . Reinforcement 2 | . 1 . . . 1 . Assault . | . . . . . . . Garrison 1 | . . . . . 1 . Intercept . | . . . . . . . Searches Triggered . | . . . . . . . Construction Impeded . | . . . . . . . Haulers Reinforced . | . . . . . . . Active Scanning Responses . | . . . . . . . Cargo Convoy Interrupts . | . . . . . . . Stealth | -11 -10 -10 -10 -9 -8 -8 --------- Run | Yrd Mat Min Exi Min Mat Gar Distress Signals 3 | . 1 . . 1 1 . Communications Jammed . | . . . . . . . Distress Signals . | . . . . . . . Times Spotted 63 | . 25 6 . 4 11 17 Peak Tracking Total 7 | . 7 2 . 2 3 5 Tactical Retreats 2 | . 2 . . . . . Traps | -11 -10 -10 -10 -9 -8 -8 ------- Run | Yrd Mat Min Exi Min Mat Gar Traps Triggered 6 | . 1 1 . . . 4 Indirectly . | . . . . . . . Trap Hack Attempts . | . . . . . . . Triggered . | . . . . . . . Disarmed . | . . . . . . . Reprogrammed . | . . . . . . . Reused . | . . . . . . . Traps Extracted . | . . . . . . . Installed . | . . . . . . . Triggered . | . . . . . . . Machines | -11 -10 -10 -10 -9 -8 -8 ---------- Run | Yrd Mat Min Exi Min Mat Gar Machines Disabled 4 | . . . . 1 . 3 Max in Single Turn 1 | . . . . 1 . 1 Garrison Relay 3 | . . . . . . 3 Machines Repaired . | . . . . . . . Machines Dismantled . | . . . . . . . Machines Sabotaged . | . . . . . . . Overloaded Fab Kills . | . . . . . . . Hacking | -11 -10 -10 -10 -9 -8 -8 --------- Run | Yrd Mat Min Exi Min Mat Gar Machines Accessed 8 | . 1 2 1 . 2 2 Terminals 5 | . 1 1 . . 1 2 Fabricators . | . . . . . . . Repair Stations . | . . . . . . . Recycling Units . | . . . . . . . Scanalyzers . | . . . . . . . Garrison Access 1 | . . . . . 1 . Total Hacks 14 | . 1 4 2 . 3 4 Successful 6 | . . 1 2 . 2 1 Failed 8 | . 1 3 . . 1 3 Catastrophic 3 | . . 1 . . . 2 Database Lockouts . | . . . . . . . Manual 5 | . . 3 . . 2 . Terminals 10 | . 1 3 . . 2 4 Fabricators . | . . . . . . . Repair Stations . | . . . . . . . Recycling Units . | . . . . . . . Scanalyzers . | . . . . . . . Garrison Access 1 | . . . . . 1 . Terminal Hacks 4 | . . 1 2 . . 1 Record 2 | . . . 2 . . . Open Door 1 | . . 1 . . . . Emergency Access Points 1 | . . . . . . 1 Fabricator Hacks . | . . . . . . . Repair Station Hacks . | . . . . . . . Recycling Unit Hacks . | . . . . . . . Scanalyzer . | . . . . . . . Garrison Access Hacks 1 | . . . . . 1 . Unlock Access 1 | . . . . . 1 . Unauthorized Hacks 1 | . . . . . 1 . Terminals 1 | . . . . . 1 . Botnet 1 | . . . . . 1 . Fabricators . | . . . . . . . Repair Stations . | . . . . . . . Recycling Units . | . . . . . . . Scanalyzers . | . . . . . . . Garrison Access . | . . . . . . . Data Cores Recovered . | . . . . . . . Used . | . . . . . . . Hacking Detections 5 | . 1 1 . . 1 2 Full Trace Events . | . . . . . . . Feedback Events . | . . . . . . . Feedback Blocked . | . . . . . . . Robot Schematics Acquired . | . . . . . . . Robots Built . | . . . . . . . Authchips . | . . . . . . . Time . | . . . . . . . Total Robot Build Rating . | . . . . . . . Part Schematics Acquired . | . . . . . . . Parts Built . | . . . . . . . Authchips . | . . . . . . . Time . | . . . . . . . Total Part Build Rating . | . . . . . . . Part Studies Acquired . | . . . . . . . Parts Repaired . | . . . . . . . Time . | . . . . . . . Parts Recycled . | . . . . . . . Recycled Matter . | . . . . . . . Retrieved Matter . | . . . . . . . Retrieved Components . | . . . . . . . Parts Scanalyzed . | . . . . . . . Part Schematics Acquired . | . . . . . . . Parts Damaged . | . . . . . . . Bothacking | -11 -10 -10 -10 -9 -8 -8 ------------ Run | Yrd Mat Min Exi Min Mat Gar Used RIF Installer . | . . . . . . . Robots Hacked . | . . . . . . . Non-combat . | . . . . . . . Combat . | . . . . . . . Robot Hacks Applied . | . . . . . . . Relay Couplers Released 13 | . . . . . . 13 Machine Destruction 13 | . . . . . . 13 Fabnet Peak Effective % . | . . . . . . . Robots Rewired . | . . . . . . . Allies Hacked . | . . . . . . . Hacks Repelled . | . . . . . . . Allies | -11 -10 -10 -10 -9 -8 -8 -------- Run | Yrd Mat Min Exi Min Mat Gar Total Allies 3 | . . 3 . . . . Largest Group 3 | . . 3 2 2 1 . Highest-Rated Group 40 | . . 40 32 32 16 . Highest-Rated Ally 16 | . . 16 16 16 16 . Total Orders . | . . . . . . . Ally Attacks 20 | . . 6 . 6 8 . Total Damage 205 | . . 75 . 53 77 . Kills 4 | . . 1 . 2 1 . Allies Corrupted . | . . . . . . . Allies Melted 1 | . . 1 . . . . Intel | -11 -10 -10 -10 -9 -8 -8 ------- Run | Yrd Mat Min Exi Min Mat Gar Active Infowar (turns) 4297 | 137 394 . . . 568 3198 Sensors 779 | . . . . . 568 211 Terrain 531 | 137 394 . . . . . Traps 2987 | . . . . . . 2987 Robot Analysis Total . | . . . . . . . Derelict Logs Recovered 2 | . . 1 . 1 . . Drone Launches . | . . . . . . . Drone Recoveries . | . . . . . . . Exploration | -11 -10 -10 -10 -9 -8 -8 ------------- Run | Yrd Mat Min Exi Min Mat Gar Turns Passed 7673 | 233 983 590 246 249 570 4802 Spaces Moved 2018 | 126 469 330 157 123 276 537 Core 86 | 2 . . . . . 84 Treads 1580 | 124 469 330 157 123 276 101 Legs 3 | . . . . . . 3 Wheels 349 | . . . . . . 349 Hover . | . . . . . . . Flight . | . . . . . . . Fastest Speed 50 | 50 160 152 152 152 152 120 Average Speed 338 | 158 160 153 152 152 154 843 Slowest Speed 3500 | 160 160 160 152 152 155 3500 Overloaded Moves . | . . . . . . . Propulsion Burnouts . | . . . . . . . Robots Hopped . | . . . . . . . Potential Cave-ins . | . . . . . . . Cave-ins Triggered . | . . . . . . . Exploration Rate (%) 43 | 4 75 49 51 36 26 64 Regions Visited 6 Branch Regions 3 Pre-discovered Areas 3 | . . . 1 2 . . Known Exits Taken 1 | . . . . . 1 . Unknown Exits Taken 5 | 1 1 1 1 1 . . Scrap Searched . | . . . . . . . Spaces Dug . | . . . . . . . Terrain Destroyed 5 | . . . . . 5 . Melee . | . . . . . . . Projectile 5 | . . . . . 5 . AOE . | . . . . . . . Terrain Rammed . | . . . . . . . Walls Destroyed . | . . . . . . . Machines Disabled . | . . . . . . . Actions | -11 -10 -10 -10 -9 -8 -8 --------- Run | Yrd Mat Min Exi Min Mat Gar Total 2561 | 145 646 373 165 176 366 690 Wait 253 | 3 133 3 6 49 50 9 Move 2012 | 125 468 329 156 122 275 537 Hop . | . . . . . . . Pick Up 36 | 5 4 3 1 . 5 18 Fast Attach 7 | 6 . . . . . 1 Attach 13 | . 2 1 . . 4 6 Detach . | . . . . . . . Swap 23 | . 9 4 . . 2 8 Drop 13 | . 2 6 2 . 1 2 Fire 166 | 6 28 24 . 5 29 74 Melee . | . . . . . . . Ram . | . . . . . . . Kick 3 | . . . . . . 3 Crush 3 | . . 3 . . . . Escape Stasis 32 | . . . . . . 32 Rewire . | . . . . . . . Trap . | . . . . . . . Miscellaneous . | . . . . . . . Route ------- -11/Scrapyard -10/Materials (discovered 3 exits: [*Mat x2] / *Min) -10/Mines (discovered 2 exits: [*Mat] / *Exi) -10/Exiles -9/Mines -8/Materials -8/Garrison (discovered 2 exits: [*Fac x2]) History --------- Turn | Location | Event 32 | -11/Scrapyard | Discovered new exit (range 16) 234 | -11/Scrapyard | Entered Materials 311 | -10/Materials | Build established: Mutant 732 | -10/Materials | Discovered new exit (range 3) 769 | -10/Materials | Discovered new exit (range 15) 993 | -10/Materials | Discovered new exit (range 10) 1217 | -10/Materials | Entered Mines 1306 | -10/Mines | Met a Derelict who couldn't figure out how to use a Trap Extractor 1413 | -10/Mines | Assisted by bots powering up and referring to "LRC-V3" 1597 | -10/Mines | Learned Materials emergency access door positions 1622 | -10/Mines | Deemed a non-threat by the Exiles lab entrance 1624 | -10/Mines | Discovered new exit (range 5) 1690 | -10/Mines | Discovered new exit (range 4) 1719 | -10/Mines | Core integrity fell below 50% 1807 | -10/Mines | Entered Exiles 1807 | -10/Exiles | Accompanied by 2 allies 1845 | -10/Exiles | Met 8R-AWN 1870 | -10/Exiles | Met EX-HEX 1938 | -10/Exiles | Met EX-DEC 1953 | -10/Exiles | Learned location of Zion (-7) 2030 | -10/Exiles | Discovered new exit (range 12) 2053 | -10/Exiles | Entered Mines 2053 | -9/Mines | Accompanied by 2 allies 2054 | -9/Mines | Learned location of Storage (-9) 2284 | -9/Mines | Discovered new exit (range 10) 2302 | -9/Mines | Entered Materials 2302 | -8/Materials | Accompanied by 1 ally 2302 | -8/Materials | Evolved 4 slots: Propulsion x1, Utility x3 2759 | -8/Materials | Identified exit to Garrison 2805 | -8/Materials | Garrison activated, responded to threat 2872 | -8/Materials | Entered Garrison 3004 | -8/Garrison | Triggered checkpoint 3081 | -8/Garrison | Garrison Relay disabled 3372 | -8/Garrison | Build established: Hauler-Mutant 3530 | -8/Garrison | Triggered checkpoint 3899 | -8/Garrison | Discovered new exit (range 11) 3946 | -8/Garrison | Triggered checkpoint 4043 | -8/Garrison | Garrison Relay disabled 4338 | -8/Garrison | Garrison Relay disabled 4558 | -8/Garrison | Triggered checkpoint 5603 | -8/Garrison | Discovered new exit (range 14) 7650 | -8/Garrison | Core integrity fell below 50% 7668 | -8/Garrison | Core integrity fell below 20% 7674 | -8/Garrison | Destroyed by Y-45 Defender with Heavy Assault Rifle Last Messages --------------- 06772_ ALERT: Garrison interior compromised. 06828_ Acquired 4 matter. 06922_ ALERT: Garrison interior compromised. 07601_ Critical hit (Burn: +37). 07631_ Assault Cannon destroyed. 07639_ Y-45 Defender destroyed. 07644_ G-47 Trooper destroyed. 07644_ Switching to secondary target: Y-45 Defender. 07646_ Humpback destroyed. 07649_ Autogun destroyed. 07652_ Acquired Beam Rifle. 07661_ Critical hit (Burn: +37). 07663_ Y-45 Defender heat damages Lgt. Armor Plating. 07665_ Y-45 Defender heat damages Beam Rifle. 07667_ Beam Rifle destroyed. 07668_ Kicked Y-45 Defender. 07670_ Kicked Y-45 Defender out of the way. 07671_ Acquired 102 matter. 07672_ Y-45 Defender heat short circuits Lgt. Treads. 07672_ ALERT: Garrison interior compromised. Map ----- +----------------------------------------------------+ | ?????????????????????????????????????????? | | ?????????????????????????????????????????? | | ?????????????????????????????????????????? | | ?????????????????????????????????????????? | | ?????????????????????????????????????????? | | ?????????????????????????????????????????? | | ?????????????????????????????????????????? | | ?????????+??+????????????????????????????? | | ?????+???+??+????????????????????????????? | | ?????????????????????????????????????????? | | ?????????????????????????????????????????? | | #????????????????????????????????????????? | | ????????????????????????????????????????? | | ????????????????????????????????????????? | | ????????????????????????????????????????? | | ?????????????????????????????????????????? | | ?????????????????????????????????????????? | | ?????????????????????????????????????????? | | ?????????????????????????????????????????? | | ?????????????????????????????????????????? | | ????????????????????????####?????????????? | | ???????????????????????## ##????????????? | | #########??????????????#!! #????????????? | | ################!!! #????????????? | | " !=!YY Y!! #????????????? | | ###+## ###########!####!@* "????????????? | | ??# ## #?????????# #??#[! "????????????? | | ??# ## #?????????# #??####T#????????????? | | ??# ## #?????????#+#??????##????????????? | | ### ## %#????????????????????????????????? | | ## %##########""?????????????????????? | | ### !" =" " #????????????????? | | ??#### #####^######?????????????????????? | | ###### #????????????????????????????????? | | ##### #??????????????????????????? | | #??????????????????????????? | | ###### #######??????????????????????????? | | ?????# #????????????????????????????????? | | ?????# ####?????????????????????????????? | | ?????# " #?????????????????????????????? | | ?????# # #?????????????????????????????? | | ?????# ####?????????????????????????????? | | ?????# ##############???????????????????? | | ?????# #???????????????????? | | ?????# #???????????????????? | | ?????#######++#### < #???????????????????? | | ???????????# #??????#???????????????????? | | ???????????# #??????????????????????????? | | ??????###### ####???????????????????????? | | ??????#"" ""#???????????????????????? | +----------------------------------------------------+ Best States ------------- Heat Dissipation 45 Energy Generation 14 Energy Capacity 250 Matter Stores 300 Matter Capacity 300 Sight Range 16 Robot Scan Range 15 Terrain Scan Range 16 Terrain Scan Density 10 Armor Coverage 150 Evasion (%) 40 Recoil Reduction 3 Item Schematics ----------------- None Robot Schematics ------------------ None Fabricated ------------ Nothing Repaired ---------- Nothing Studied --------- None Alien Tech Used ----------------- None Achievements -------------- None Challenges ------------ None Game ------ Seed CargoSkeletonField Manual? 0 Play Time 00:36:12 Cumulative 179.7 hours Start 2026.08.30 @ 16:42:01 End 2026.08.30 @ 18:30:16 Sessions 1 Manual Loads 0 Difficulty Rogue Special Mode None Game No. 196 Rogue 196 Adventurer 0 Explorer 0 Win Type - Total 0 Types 0/0/0/0/0/0/0/0/0/0 Lore% 59 Gallery% 46 Achievement% 35 Wizard Run 0 Options --------- Layout 0 ASCII 0 Keyboard 0 Movement Arrows Keybinds 0 Fullscreen 1 Font 20/SmallcapsGlow Map View 66x50 Zoom Use 0% Tactical HUD 1 Map Filters NONE Filters NONE Steam 1 RUN: 33cda391-6041-4074-8d5e-41b23a1bd7af